fUSD/lending_fUSD_20250930
["ID","MTS","AMOUNT","RATE_DAILY","PERIOD"]
[388536168,1759236679847,-521.13,0.00019452,2]
[388536169,1759236679857,-500.0,0.00019452,2]
[388536170,1759236679867,-1197.5,0.00019452,2]
[388536171,1759236679877,-151.0,0.00019452,2]
[388536172,1759236679887,-1731.1,0.00019452,2]
[388536173,1759236679897,-1863.44,0.00019452,2]
[388536174,1759236679907,-2474.62,0.00019452,2]
[388536175,1759236679916,-431.81374,0.00019452,2]
[388536176,1759236679927,-151.0,0.00019452,2]
[388536177,1759236679938,-431.81374,0.00019452,2]
[388536178,1759236679948,-500.0,0.00019452,2]
[388536179,1759236679958,-500.0,0.00019452,2]
[388536180,1759236679968,-151.0,0.00019452,2]
[388536181,1759236679978,-544.806261,0.00019452,2]
[388536182,1759236679988,-500.0,0.00019452,2]
[388536183,1759236679998,-500.0,0.00019452,2]
[388536184,1759236680009,-544.806261,0.00019452,2]
[388536185,1759236680018,-431.81374,0.00019452,2]
[388536186,1759236680028,-151.0,0.00019452,2]
[388536187,1759236680039,-1335.55,0.00019452,2]
[388536188,1759236680051,-431.81374,0.00019452,2]
[388536189,1759236680064,-151.0,0.00019452,2]
[388536190,1759236680074,-151.0,0.00019452,2]
[388536191,1759236680083,-151.0,0.00019452,2]
[388536192,1759236680094,-151.0,0.00019452,2]
[388536193,1759236680104,-544.806261,0.00019452,2]
[388536194,1759236680114,-2446.39,0.00019452,2]
[388536195,1759236680124,-431.81374,0.00019452,2]
[388536196,1759236680133,-544.806261,0.00019452,2]
[388536197,1759236680144,-568.67,0.00019452,2]
[388536198,1759236680154,-431.81374,0.00019452,2]
[388536199,1759236680164,-151.0,0.00019452,2]
[388536200,1759236680174,-151.0,0.00019452,2]
[388536201,1759236680184,-151.0,0.00019452,2]
[388536202,1759236680194,-151.0,0.00019452,2]
[388536203,1759236680203,-1912.02,0.00019452,2]
[388536204,1759236680213,-544.806261,0.00019452,2]
[388536205,1759236680223,-544.806261,0.00019452,2]
[388536206,1759236680233,-431.81374,0.00019452,2]
[388536207,1759236680243,-431.81374,0.00019452,2]
[388536208,1759236680253,-151.0,0.00019452,2]
[388536209,1759236680262,-544.806261,0.00019452,2]
[388536210,1759236680272,-544.806261,0.00019452,2]
[388536211,1759236680282,-500.0,0.00019452,2]
[388536212,1759236680293,-534.343008,0.00019452,2]
[388536213,1759236680303,-174.33,0.00019452,2]
[388536214,1759236680313,-534.343008,0.00019452,2]
[388536215,1759236680323,-500.0,0.00019452,2]
[388536216,1759236680333,-151.0,0.00019452,2]
[388536217,1759236680342,-626.84,0.00019452,2]
[388536218,1759236680352,-151.0,0.00019452,2]
[388536219,1759236680362,-1934.01,0.00019452,2]
[388536220,1759236680377,-621.31,0.00019452,2]
[388536221,1759236680387,-534.343008,0.00019452,2]
[388536222,1759236680893,-2610.4,0.00019452,2]
[388536223,1759236680971,-534.343008,0.00019452,2]
[388536224,1759236680982,-151.0,0.00019452,2]
[388536225,1759236680992,-151.0,0.00019452,2]
[388536226,1759236681002,-500.0,0.00019452,2]
[388536227,1759236681011,-598.23,0.00019452,2]
[388536228,1759236681022,-500.0,0.00019452,2]
[388536229,1759236681032,-500.0,0.00019452,2]
[388536230,1759236681041,-500.0,0.00019452,2]
[388536231,1759236681051,-234.48412,0.00019452,2]
[388536232,1759236681061,-534.343008,0.00019452,2]
[388536233,1759236681072,-500.0,0.00019452,2]
[388536234,1759236681083,-534.343008,0.00019452,2]
[388536235,1759236681092,-166.037285,0.00019452,2]
[388536236,1759236681102,-534.343008,0.00019452,2]
[388536237,1759236681113,-534.343008,0.00019452,2]
[388536238,1759236681124,-610.56,0.00019452,2]
[388536239,1759236681133,-500.0,0.00019452,2]
[388536240,1759236681143,-3946.61,0.00019452,2]
[388536241,1759236681153,-786.49,0.00019452,2]
[388536242,1759236681163,-500.0,0.00019452,2]
[388536243,1759236681173,-2744.05,0.00019452,2]
[388536244,1759236681182,-500.0,0.00019452,2]
[388536245,1759236681193,-500.0,0.00019452,2]
[388536246,1759236681202,-333.45249725,0.00019452,2]
[388536247,1759236681212,-1736.91,0.00019452,2]
[388536248,1759236681222,-1845.109931,0.00019452,2]
[388536249,1759236681231,-1845.109931,0.00019452,2]
[388536250,1759236681241,-500.0,0.00019452,2]
[388536251,1759236681250,-500.0,0.00019452,2]
[388536252,1759236681262,-1845.109931,0.00019452,2]
[388536253,1759236681271,-1202.76,0.00019452,2]
[388536254,1759236681280,-1845.109931,0.00019452,2]
[388536255,1759236681290,-500.0,0.00019452,2]
[388536256,1759236681300,-4345.96,0.00019452,2]
[388536257,1759236681310,-1978.62,0.00019452,2]
[388536258,1759236681320,-500.0,0.00019452,2]
[388536259,1759236681330,-500.0,0.00019452,2]
[388536260,1759236681340,-500.0,0.00019452,2]
[388536261,1759236681349,-599.39,0.00019452,2]
[388536262,1759236681359,-500.0,0.00019452,2]
[388536263,1759236681369,-925.67,0.00019452,2]
[388536264,1759236681378,-648.45,0.00019452,2]
[388536265,1759236681388,-500.0,0.00019452,2]
[388536266,1759236681397,-1854.6,0.00019452,2]
[388536267,1759236681407,-1318.96,0.00019452,2]
[388536268,1759236681416,-2922.79,0.00019452,2]
[388536269,1759236681426,-500.0,0.00019452,2]
[388536270,1759236681436,-500.0,0.00019452,2]
[388536271,1759236681446,-3545.03,0.00019452,2]
[388536272,1759236681455,-500.0,0.00019452,2]
[388536273,1759236681465,-500.0,0.00019452,2]
[388536274,1759236681475,-151.0,0.00019452,2]
[388536275,1759236681485,-3075.3,0.00019452,2]
[388536276,1759236681494,-500.0,0.00019452,2]
[388536277,1759236681505,-151.0,0.00019452,2]
[388536278,1759236681514,-787.29,0.00019452,2]
[388536279,1759236681524,-500.0,0.00019452,2]
[388536280,1759236681534,-500.0,0.00019452,2]
[388536281,1759236681543,-500.0,0.00019452,2]
[388536282,1759236681553,-3309.16,0.00019452,2]
[388536283,1759236681563,-4252.51,0.00019452,2]
[388536284,1759236681572,-500.0,0.00019452,2]
[388536285,1759236681583,-539.356989,0.00019452,2]
[388536286,1759236681594,-539.356989,0.00019452,2]
[388536287,1759236681604,-4836.52,0.00019452,2]
[388536288,1759236681614,-539.356989,0.00019452,2]
[388536289,1759236681624,-539.356989,0.00019452,2]
[388536290,1759236681633,-505.42,0.00019452,2]
[388536291,1759236681643,-500.0,0.00019452,2]
[388536292,1759236681653,-539.356989,0.00019452,2]
[388536293,1759236681663,-500.0,0.00019452,2]
[388536294,1759236681675,-151.0,0.00019452,2]
[388536295,1759236681685,-539.356989,0.00019452,2]
[388536296,1759236681695,-151.0,0.00019452,2]
[388536297,1759236681705,-500.0,0.00019452,2]
[388536298,1759236681715,-539.356989,0.00019452,2]
[388536299,1759236681726,-610.04,0.00019452,2]
[388536300,1759236681736,-539.356989,0.00019452,2]
[388536301,1759236681745,-151.0,0.00019452,2]
[388536302,1759236681756,-2771.3,0.00019452,2]
[388536303,1759236681765,-2300.54,0.00019452,2]
[388536304,1759236681775,-500.0,0.00019452,2]
[388536305,1759236681785,-500.0,0.00019452,2]
[388536306,1759236681794,-500.0,0.00019452,2]
[388536307,1759236681804,-500.0,0.00019452,2]
[388536308,1759236681814,-1600.72,0.00019452,2]
[388536309,1759236681824,-500.0,0.00019452,2]
[388536310,1759236681834,-4537.1,0.00019452,2]
[388536311,1759236681844,-3468.68,0.00019452,2]
[388536312,1759236681854,-4138.34,0.00019452,2]
[388536313,1759236681863,-500.0,0.00019452,2]
[388536314,1759236681873,-500.0,0.00019452,2]
[388536315,1759236681883,-151.0,0.00019452,2]
[388536316,1759236681893,-151.0,0.00019452,2]
[388536317,1759236681903,-500.0,0.00019452,2]
[388536318,1759236681913,-320.934407,0.00019452,2]
[388536319,1759236681924,-2834.78,0.00019452,2]
[388536320,1759236681934,-500.0,0.00019452,2]
[388536321,1759236681945,-320.934407,0.00019452,2]
[388536322,1759236681955,-2219.19,0.00019452,2]
[388536323,1759236681965,-1285.88,0.00019452,2]
[388536324,1759236681974,-320.934407,0.00019452,2]
[388536325,1759236681984,-320.934407,0.00019452,2]
[388536326,1759236681994,-151.0,0.00019452,2]
[388536327,1759236682003,-500.0,0.00019452,2]
[388536328,1759236682013,-865.96,0.00019452,2]
[388536329,1759236682023,-151.0,0.00019452,2]
[388536330,1759236682034,-320.934407,0.00019452,2]
[388536331,1759236682044,-500.0,0.00019452,2]
[388536332,1759236682054,-320.934407,0.00019452,2]
[388536333,1759236682063,-500.0,0.00019452,2]
[388536334,1759236682074,-3259.44,0.00019452,2]
[388536335,1759236682084,-1028.47,0.00019452,2]
[388536336,1759236682093,-836.63,0.00019452,2]
[388536337,1759236682103,-151.0,0.00019452,2]
[388536338,1759236682113,-320.934407,0.00019452,2]
[388536339,1759236682123,-151.0,0.00019452,2]
[388536340,1759236682132,-320.934407,0.00019452,2]
[388536341,1759236682142,-500.0,0.00019452,2]
[388536342,1759236682152,-3419.59,0.00019452,2]
[388536343,1759236682163,-8334.17,0.00019452,2]
[388536344,1759236682172,-2557.33,0.00019452,2]
[388536345,1759236682182,-2084.4,0.00019452,2]
[388536346,1759236682191,-1859.67,0.00019452,2]
[388536347,1759236682201,-151.0,0.00019452,2]
[388536348,1759236682211,-618.66,0.00019452,2]
[388536349,1759236682221,-151.0,0.00019452,2]
[388536350,1759236682231,-697.8,0.00019452,2]
[388536351,1759236682241,-151.0,0.00019452,2]
[388536352,1759236682250,-151.0,0.00019452,2]
[388536353,1759236682260,-500.0,0.00019452,2]
[388536354,1759236682270,-151.0,0.00019452,2]
[388536355,1759236682279,-500.0,0.00019452,2]
[388536356,1759236682289,-872.72,0.00019452,2]
[388536357,1759236682299,-547.040049,0.00019452,2]
[388536358,1759236682308,-151.0,0.00019452,2]
[388536359,1759236682318,-547.040049,0.00019452,2]
[388536360,1759236682327,-151.0,0.00019452,2]
[388536361,1759236682337,-151.0,0.00019452,2]
[388536362,1759236682347,-151.0,0.00019452,2]
[388536363,1759236682357,-151.0,0.00019452,2]
[388536364,1759236682367,-151.0,0.00019452,2]
[388536365,1759236682377,-547.040049,0.00019452,2]
[388536366,1759236682387,-547.040049,0.00019452,2]
[388536367,1759236682396,-151.0,0.00019452,2]
[388536368,1759236682406,-871.1,0.00019452,2]
[388536369,1759236682416,-151.0,0.00019452,2]
[388536370,1759236682426,-151.0,0.00019452,2]
[388536371,1759236682436,-151.0,0.00019452,2]
[388536372,1759236682446,-1422.131782,0.00019452,2]
[388536373,1759236682456,-151.0,0.00019452,2]
[388536374,1759236682466,-1422.131782,0.00019452,2]
[388536375,1759236682476,-1859.04,0.00019452,2]
[388536376,1759236682485,-151.0,0.00019452,2]
[388536377,1759236682495,-547.040049,0.00019452,2]
[388536378,1759236682504,-547.040049,0.00019452,2]
[388536379,1759236682514,-1063.98,0.00019452,2]
[388536380,1759236682524,-162.110232,0.00019452,2]
[388536381,1759236682534,-547.040049,0.00019452,2]
[388536382,1759236682544,-509.5,0.00019452,2]
[388536383,1759236682553,-547.040049,0.00019452,2]
[388536384,1759236682563,-10507.95,0.00019452,2]
[388536385,1759236682573,-500.0,0.00019452,2]
[388536386,1759236682582,-500.0,0.00019452,2]
[388536387,1759236682591,-929.49,0.00019452,2]
[388536388,1759236682601,-500.0,0.00019452,2]
[388536389,1759236682611,-500.0,0.00019452,2]
[388536390,1759236682620,-745.96,0.00019452,2]
[388536391,1759236682630,-4439.11,0.00019452,2]
[388536392,1759236682640,-2792.99,0.00019452,2]
[388536393,1759236682650,-500.0,0.00019452,2]
[388536394,1759236682659,-989.05,0.00019452,2]
[388536395,1759236682669,-4340.48,0.00019452,2]
[388536396,1759236682678,-1422.131782,0.00019452,2]
[388536397,1759236682687,-1422.131782,0.00019452,2]
[388536398,1759236682697,-1279.39,0.00019452,2]
[388536399,1759236682707,-151.0,0.00019452,2]
[388536400,1759236682716,-1422.131782,0.00019452,2]
[388536401,1759236682725,-151.0,0.00019452,2]
[388536402,1759236682735,-1422.131782,0.00019452,2]
[388536403,1759236682744,-2129.67,0.00019452,2]
[388536404,1759236682753,-500.0,0.00019452,2]
[388536405,1759236682763,-151.0,0.00019452,2]
[388536406,1759236682772,-548.12,0.00019452,2]
[388536407,1759236682782,-151.0,0.00019452,2]
[388536408,1759236682792,-500.0,0.00019452,2]
[388536409,1759236682803,-1422.131782,0.00019452,2]
[388536410,1759236682816,-1422.131782,0.00019452,2]
[388536411,1759236682825,-3669.84,0.00019452,2]
[388536412,1759236682835,-151.0,0.00019452,2]
[388536413,1759236682845,-805.4,0.00019452,2]
[388536414,1759236682856,-3523.25,0.00019452,2]
[388536415,1759236682866,-151.0,0.00019452,2]
[388536416,1759236682877,-500.0,0.00019452,2]
[388536417,1759236682890,-2285.37,0.00019452,2]
[388536418,1759236682905,-151.0,0.00019452,2]
[388536419,1759236682915,-500.0,0.00019452,2]
[388536420,1759236682924,-5551.49,0.00019452,2]
[388536421,1759236682934,-151.0,0.00019452,2]
[388536422,1759236682943,-5950.02,0.00019452,2]
[388536423,1759236682953,-6330.81,0.00019452,2]
[388536424,1759236682963,-4104.25,0.00019452,2]
[388536425,1759236682972,-1154.61,0.00019452,2]
[388536426,1759236682982,-500.0,0.00019452,2]
[388536427,1759236682991,-1583.44,0.00019452,2]
[388536428,1759236683001,-314.05438492,0.00019452,2]
[388536429,1759236683010,-500.0,0.00019452,2]
[388536430,1759236683020,-151.0,0.00019452,2]
[388536431,1759236683030,-546.47,0.00019452,2]
[388536432,1759236683040,-151.0,0.00019452,2]
[388536433,1759236683049,-151.0,0.00019452,2]
[388536434,1759236683059,-151.0,0.00019452,2]
[388536435,1759236683069,-1613.6,0.00019452,2]
[388536436,1759236683079,-151.0,0.00019452,2]
[388536437,1759236683088,-2256.46,0.00019452,2]
[388536438,1759236683098,-576.79,0.00019452,2]
[388536439,1759236683107,-151.0,0.00019452,2]
[388536440,1759236683117,-4612.6,0.00019452,2]
[388536441,1759236683126,-1406.64,0.00019452,2]
[388536442,1759236683135,-15617.62,0.00019452,2]
[388536443,1759236683145,-893.75,0.00019452,2]
[388536444,1759236683155,-708.23,0.00019452,2]
[388536445,1759236683164,-500.0,0.00019452,2]
[388536446,1759236683174,-500.0,0.00019452,2]
[388536447,1759236683183,-151.0,0.00019452,2]
[388536448,1759236683192,-500.0,0.00019452,2]
[388536449,1759236683202,-7867.12,0.00019452,2]
[388536450,1759236683212,-151.0,0.00019452,2]
[388536451,1759236683221,-151.0,0.00019452,2]
[388536452,1759236683231,-151.0,0.00019452,2]
[388536453,1759236683240,-151.0,0.00019452,2]
[388536454,1759236683249,-3222.59,0.00019452,2]
[388536455,1759236683259,-151.0,0.00019452,2]
[388536456,1759236683268,-151.0,0.00019452,2]
[388536457,1759236683278,-4430.21,0.00019452,2]
[388536458,1759236683287,-151.0,0.00019452,2]
[388536459,1759236683297,-267.719266,0.00019452,2]
[388536460,1759236683306,-3094.31,0.00019452,2]
[388536461,1759236683316,-8599.07,0.00019452,2]
[388536462,1759236683325,-500.0,0.00019452,2]
[388536463,1759236683335,-500.0,0.00019452,2]
[388536464,1759236683345,-1608.86,0.00019452,2]
[388536465,1759236683355,-535.69,0.00019452,2]
[388536466,1759236683506,-4834.6,0.00019452,2]
[388536467,1759236683516,-5002.0,0.00019452,2]
[388536468,1759236683526,-771.77,0.00019452,2]
[388536469,1759236683535,-500.0,0.00019452,2]
[388536470,1759236683544,-6082.65,0.00019452,2]
[388536471,1759236683554,-4224.68,0.00019452,2]
[388536472,1759236683564,-2260.51,0.00019452,2]
[388536473,1759236683573,-151.0,0.00019452,2]
[388536474,1759236683582,-151.0,0.00019452,2]
[388536475,1759236683591,-500.0,0.00019452,2]
[388536476,1759236683599,-2607.66,0.00019452,2]
[388536477,1759236683608,-4485.22,0.00019452,2]
[388536478,1759236683616,-151.0,0.00019452,2]
[388536479,1759236683625,-151.0,0.00019452,2]
[388536480,1759236683636,-782.32,0.00019452,2]
[388536481,1759236683646,-151.0,0.00019452,2]
[388536482,1759236683655,-500.0,0.00019452,2]
[388536483,1759236683665,-151.0,0.00019452,2]
[388536484,1759236683675,-4052.2,0.00019452,2]
[388536485,1759236683685,-500.0,0.00019452,2]
[388536486,1759236683694,-500.0,0.00019452,2]
[388536487,1759236683704,-151.0,0.00019452,2]
[388536488,1759236683713,-151.0,0.00019452,2]
[388536489,1759236683723,-151.0,0.00019452,2]
[388536490,1759236683732,-151.0,0.00019452,2]
[388536491,1759236683742,-151.0,0.00019452,2]
[388536492,1759236683752,-159.110962,0.00019452,2]
[388536493,1759236683761,-151.0,0.00019452,2]
[388536494,1759236683771,-202.07884,0.00019452,2]
[388536495,1759236683780,-151.0,0.00019452,2]
[388536496,1759236683789,-500.0,0.00019452,2]
[388536497,1759236683799,-2345.29,0.00019452,2]
[388536498,1759236683809,-3481.91,0.00019452,2]
[388536499,1759236683819,-4198.69,0.00019452,2]
[388536500,1759236683829,-1404.94,0.00019452,2]
[388536501,1759236683840,-500.0,0.00019452,2]
[388536502,1759236683850,-886.09,0.00019452,2]
[388536503,1759236683860,-500.0,0.00019452,2]
[388536504,1759236683869,-169.445697,0.00019452,2]
[388536505,1759236683880,-11810.4,0.00019452,2]
[388536506,1759236683889,-854.6,0.00019452,2]
[388536507,1759236683899,-559.36,0.00019452,2]
[388536508,1759236683908,-500.0,0.00019452,2]
[388536509,1759236683918,-4218.11,0.00019452,2]
[388536510,1759236683928,-500.0,0.00019452,2]
[388536511,1759236683937,-11135.57,0.00019452,2]
[388536512,1759236683947,-500.0,0.00019452,2]
[388536513,1759236683957,-247.413347,0.00019452,2]
[388536514,1759236683966,-247.413347,0.00019452,2]
[388536515,1759236683976,-169.445697,0.00019452,2]
[388536516,1759236683985,-4919.51,0.00019452,2]
[388536517,1759236683995,-500.0,0.00019452,2]
[388536518,1759236684005,-500.0,0.00019452,2]
[388536519,1759236684015,-966.27,0.00019452,2]
[388536520,1759236684025,-151.0,0.00019452,2]
[388536521,1759236684035,-300.0,0.00019452,2]
[388536522,1759236684045,-247.413347,0.00019452,2]
[388536523,1759236684055,-169.445697,0.00019452,2]
[388536524,1759236684064,-151.0,0.00019452,2]
[388536525,1759236684075,-247.413347,0.00019452,2]
[388536526,1759236684085,-169.445697,0.00019452,2]
[388536527,1759236684095,-151.0,0.00019452,2]
[388536528,1759236684105,-247.413347,0.00019452,2]
[388536529,1759236684115,-151.0,0.00019452,2]
[388536530,1759236684125,-151.0,0.00019452,2]
[388536531,1759236684136,-169.445697,0.00019452,2]
[388536532,1759236684146,-247.413347,0.00019452,2]
[388536533,1759236684156,-151.0,0.00019452,2]
[388536534,1759236684166,-4531.41,0.00019452,2]
[388536535,1759236684175,-169.445697,0.00019452,2]
[388536536,1759236684186,-151.0,0.00019452,2]
[388536537,1759236684195,-500.0,0.00019452,2]
[388536538,1759236684205,-151.0,0.00019452,2]
[388536539,1759236684215,-500.0,0.00019452,2]
[388536540,1759236684224,-1390.21,0.00019452,2]
[388536541,1759236684234,-169.445697,0.00019452,2]
[388536542,1759236684244,-1775.8,0.00019452,2]
[388536543,1759236684254,-151.0,0.00019452,2]
[388536544,1759236684264,-247.413347,0.00019452,2]
[388536545,1759236684274,-151.0,0.00019452,2]
[388536546,1759236684283,-169.445697,0.00019452,2]
[388536547,1759236684293,-3442.87,0.00019452,2]
[388536548,1759236684302,-247.413347,0.00019452,2]
[388536549,1759236684311,-151.0,0.00019452,2]
[388536550,1759236684320,-171.777196,0.00019452,2]
[388536551,1759236684330,-151.0,0.00019452,2]
[388536552,1759236684340,-500.0,0.00019452,2]
[388536553,1759236684349,-1630.94,0.00019452,2]
[388536554,1759236684359,-500.0,0.00019452,2]
[388536555,1759236684369,-738.87,0.00019452,2]
[388536556,1759236684378,-986.68,0.00019452,2]
[388536557,1759236684387,-151.0,0.00019452,2]
[388536558,1759236684397,-1338.26,0.00019452,2]
[388536559,1759236684406,-196.836822,0.00019452,2]
[388536560,1759236684415,-151.0,0.00019452,2]
[388536561,1759236684424,-500.0,0.00019452,2]
[388536562,1759236684433,-958.77,0.00019452,2]
[388536563,1759236684444,-934.2,0.00019452,2]
[388536564,1759236684453,-500.0,0.00019452,2]
[388536565,1759236684462,-151.0,0.00019452,2]
[388536566,1759236684472,-259.295793,0.00019452,2]
[388536567,1759236684481,-2361.94,0.00019452,2]
[388536568,1759236684491,-259.295793,0.00019452,2]
[388536569,1759236684500,-178.243114,0.00019452,2]
[388536570,1759236684510,-178.243114,0.00019452,2]
[388536571,1759236684520,-500.0,0.00019452,2]
[388536572,1759236684529,-259.295793,0.00019452,2]
[388536573,1759236684538,-259.295793,0.00019452,2]
[388536574,1759236684547,-500.0,0.00019452,2]
[388536575,1759236684557,-178.243114,0.00019452,2]
[388536576,1759236684566,-178.243114,0.00019452,2]
[388536577,1759236684575,-500.0,0.00019452,2]
[388536578,1759236684585,-178.243114,0.00019452,2]
[388536579,1759236684594,-5791.96,0.00019452,2]
[388536580,1759236684603,-178.243114,0.00019452,2]
[388536581,1759236684612,-1117.79,0.00019452,2]
[388536582,1759236684622,-500.0,0.00019452,2]
[388536583,1759236684631,-4271.07,0.00019452,2]
[388536584,1759236684641,-500.0,0.00019452,2]
[388536585,1759236684651,-324.108523,0.00019452,2]
[388536586,1759236684660,-324.108523,0.00019452,2]
[388536587,1759236684670,-178.243114,0.00019452,2]
[388536588,1759236684679,-178.243114,0.00019452,2]
[388536589,1759236684688,-324.108523,0.00019452,2]
[388536590,1759236684698,-324.108523,0.00019452,2]
[388536591,1759236684708,-151.0,0.00019452,2]
[388536592,1759236684718,-151.0,0.00019452,2]
[388536593,1759236684727,-500.0,0.00019452,2]
[388536594,1759236684737,-500.0,0.00019452,2]
[388536595,1759236684748,-324.108523,0.00019452,2]
[388536596,1759236684757,-500.0,0.00019452,2]
[388536597,1759236684766,-324.108523,0.00019452,2]
[388536598,1759236684775,-500.0,0.00019452,2]
[388536599,1759236684785,-500.0,0.00019452,2]
[388536600,1759236684795,-259.295793,0.00019452,2]
[388536601,1759236684809,-500.0,0.00019452,2]
[388536602,1759236684818,-3304.23,0.00019452,2]
[388536603,1759236684828,-259.295793,0.00019452,2]
[388536604,1759236684838,-165.668043,0.00019452,2]
[388536605,1759236684850,-715.09,0.00019452,2]
[388536606,1759236684859,-5730.05,0.00019452,2]
[388536607,1759236684869,-165.668043,0.00019452,2]
[388536608,1759236684878,-491.93667199,0.00019452,2]
[388536609,1759236684889,-259.295793,0.00019452,2]
[388536610,1759236684899,-1235.06,0.00019452,2]
[388536611,1759236684908,-259.295793,0.00019452,2]
[388536612,1759236684917,-3680.77,0.00019452,2]
[388536613,1759236684927,-500.0,0.00019452,2]
[388536614,1759236684936,-165.668043,0.00019452,2]
[388536615,1759236684946,-937.61,0.00019452,2]
[388536616,1759236684955,-165.668043,0.00019452,2]
[388536617,1759236684964,-2811.19,0.00019452,2]
[388536618,1759236684974,-151.0,0.00019452,2]
[388536619,1759236684983,-730.34,0.00019452,2]
[388536620,1759236684991,-151.0,0.00019452,2]
[388536621,1759236685001,-324.108523,0.00019452,2]
[388536622,1759236685011,-165.668043,0.00019452,2]
[388536623,1759236685020,-324.108523,0.00019452,2]
[388536624,1759236685029,-165.668043,0.00019452,2]
[388536625,1759236685038,-4400.59,0.00019452,2]
[388536626,1759236685047,-151.0,0.00019452,2]
[388536627,1759236685056,-5411.44,0.00019452,2]
[388536628,1759236685065,-151.0,0.00019452,2]
[388536629,1759236685074,-781.28,0.00019452,2]
[388536630,1759236685083,-165.668043,0.00019452,2]
[388536631,1759236685092,-165.668043,0.00019452,2]
[388536632,1759236685102,-181.805125,0.00019452,2]
[388536633,1759236685111,-500.0,0.00019452,2]
[388536634,1759236685120,-500.0,0.00019452,2]
[388536635,1759236685129,-1451.45,0.00019452,2]
[388536636,1759236685138,-775.98,0.00019452,2]
[388536637,1759236685148,-4496.61,0.00019452,2]
[388536638,1759236685158,-5464.08,0.00019452,2]
[388536639,1759236685168,-500.0,0.00019452,2]
[388536640,1759236685177,-4726.46,0.00019452,2]
[388536641,1759236685186,-5606.8,0.00019452,2]
[388536642,1759236685196,-5259.88,0.00019452,2]
[388536643,1759236685205,-500.0,0.00019452,2]
[388536644,1759236685214,-500.0,0.00019452,2]
[388536645,1759236685223,-3908.19,0.00019452,2]
[388536646,1759236685232,-500.0,0.00019452,2]
[388536647,1759236685241,-4349.5,0.00019452,2]
[388536648,1759236685251,-500.0,0.00019452,2]
[388536649,1759236685260,-500.0,0.00019452,2]
[388536650,1759236685269,-500.0,0.00019452,2]
[388536651,1759236685278,-500.0,0.00019452,2]
[388536652,1759236685288,-500.0,0.00019452,2]
[388536653,1759236685297,-2939.81,0.00019452,2]
[388536654,1759236685306,-500.0,0.00019452,2]
[388536655,1759236685318,-500.0,0.00019452,2]
[388536656,1759236685329,-151.0,0.00019452,2]
[388536657,1759236685338,-151.0,0.00019452,2]
[388536658,1759236685347,-151.0,0.00019452,2]
[388536659,1759236685357,-3323.26,0.00019452,2]
[388536660,1759236685367,-2283.42,0.00019452,2]
[388536661,1759236685376,-151.0,0.00019452,2]
[388536662,1759236685386,-1821.92,0.00019452,2]
[388536663,1759236685396,-151.0,0.00019452,2]
[388536664,1759236685406,-151.0,0.00019452,2]
[388536665,1759236685416,-500.0,0.00019452,2]
[388536666,1759236685427,-1256.35,0.00019452,2]
[388536667,1759236685439,-151.0,0.00019452,2]